[Event "Titled Tuesday Blitz July 4 Early 2023"]
[White "only_strong_moves"]
[Black "Acikel, Mert"]
[BlackFideId "12956465"]
[WhiteElo "2532"]
[BlackElo "2299"]
[Result "0-1"]
[Round "3"]
[TimeControl "180+2"]
[Date "2023.07.04"]
[WhiteClock "0:00:18"]
[BlackClock "0:00:19"]
[Board "196"]

1. g3 {[%clk 0:03:00]}  d5 {[%clk 0:02:59]} 2. Bg2 {[%clk 0:03:00]}  Nf6 {[%clk 0:03:00]} 3. c4 {[%clk 0:03:01]}  e6 {[%clk 0:03:00]} 4. Nf3 {[%clk 0:03:01]}  Be7 {[%clk 0:03:01]} 5. O-O {[%clk 0:03:02]}  O-O {[%clk 0:03:01]} 6. d4 {[%clk 0:03:02]}  dxc4 {[%clk 0:03:02]} 7. Qc2 {[%clk 0:02:59]}  b5 {[%clk 0:03:02]} 8. a4 {[%clk 0:02:56]}  Bb7 {[%clk 0:03:02]} 9. axb5 {[%clk 0:02:56]}  a6 {[%clk 0:03:03]} 10. bxa6 {[%clk 0:02:56]}  Nxa6 {[%clk 0:03:00]} 11. Qxc4 {[%clk 0:02:56]}  Bd5 {[%clk 0:03:00]} 12. Qd3 {[%clk 0:02:39]}  Nb4 {[%clk 0:03:00]} 13. Rxa8 {[%clk 0:02:39]}  Qxa8 {[%clk 0:03:00]} 14. Qd1 {[%clk 0:02:37]}  c5 {[%clk 0:02:46]} 15. Nc3 {[%clk 0:02:29]}  Bc6 {[%clk 0:02:44]} 16. Be3 {[%clk 0:02:19]}  Rd8 {[%clk 0:02:43]} 17. Bf4 {[%clk 0:01:34]}  cxd4 {[%clk 0:02:39]} 18. Nb1 {[%clk 0:01:35]}  Be4 {[%clk 0:02:31]} 19. Nbd2 {[%clk 0:01:34]}  Bd5 {[%clk 0:02:30]} 20. Qa1 {[%clk 0:01:29]}  Bc5 {[%clk 0:02:18]} 21. Be5 {[%clk 0:01:23]}  Ng4 {[%clk 0:02:11]} 22. Bc7 {[%clk 0:01:02]}  Rc8 {[%clk 0:01:59]} 23. Bf4 {[%clk 0:00:56]}  Qb7 {[%clk 0:01:37]} 24. h3 {[%clk 0:00:53]}  Nf6 {[%clk 0:01:38]} 25. Qa5 {[%clk 0:00:49]}  Nd7 {[%clk 0:01:19]} 26. Qa4 {[%clk 0:00:18]}  e5 {[%clk 0:01:12]} 27. Nxe5 {[%clk 0:00:10]}  Nxe5 {[%clk 0:01:05]} 28. Bxe5 {[%clk 0:00:11]}  Bxg2 {[%clk 0:01:04]} 29. Rc1 {[%clk 0:00:12]}  Bc6 {[%clk 0:00:38]} 30. Qa5 {[%clk 0:00:10]}  Be7 {[%clk 0:00:34]} 31. Bxd4 {[%clk 0:00:10]}  h6 {[%clk 0:00:30]} 32. Qf5 {[%clk 0:00:08]}  Bd7 {[%clk 0:00:25]} 33. Rxc8+ {[%clk 0:00:08]}  Qxc8 {[%clk 0:00:26]} 34. Qf4 {[%clk 0:00:08]}  Bg5 {[%clk 0:00:24]} 35. Qe5 {[%clk 0:00:08]}  Bf6 {[%clk 0:00:23]} 36. Qd6 {[%clk 0:00:07]}  Qc1+ {[%clk 0:00:21]} 37. Nf1 {[%clk 0:00:07]}  Bxh3 {[%clk 0:00:18]} 38. Qb8+ {[%clk 0:00:02]}  Kh7 {[%clk 0:00:18]} 39. Qb7 {[%clk 0:00:02]}  Qxf1+ {[%clk 0:00:18]} 40. Kh2 {[%clk 0:00:02]}  Qg2+ {[%clk 0:00:17]} 41. Qxg2 {[%clk 0:00:03]}  Bxg2 {[%clk 0:00:18]} 42. Kxg2 {[%clk 0:00:03]}  Bxd4 {[%clk 0:00:18]} 43. Kf3 {[%clk 0:00:04]}  Bxb2 {[%clk 0:00:19]} 44. Ke4 {[%clk 0:00:05]}  Kg6 {[%clk 0:00:17]} 45. f4 {[%clk 0:00:05]}  f5+ {[%clk 0:00:18]} 46. Kf3 {[%clk 0:00:05]}  Nd5 {[%clk 0:00:18]} 47. e4 {[%clk 0:00:06]}  fxe4+ {[%clk 0:00:19]} 48. Kxe4 {[%clk 0:00:07]}  Nxf4 {[%clk 0:00:19]} 49. Kf3 {[%clk 0:00:08]}  Nh5 {[%clk 0:00:19]} 50. g4 {[%clk 0:00:09]}  Nf6 {[%clk 0:00:19]} 51. Kf4 {[%clk 0:00:09]}  Nxg4 {[%clk 0:00:20]} 52. Kxg4 {[%clk 0:00:10]}  h5+ {[%clk 0:00:20]} 53. Kf3 {[%clk 0:00:11]}  Bf6 {[%clk 0:00:21]} 54. Kg3 {[%clk 0:00:12]}  Kg5 {[%clk 0:00:21]} 55. Kg2 {[%clk 0:00:13]}  Kg4 {[%clk 0:00:21]} 56. Kh2 {[%clk 0:00:13]}  Be5+ {[%clk 0:00:20]} 57. Kg1 {[%clk 0:00:14]}  Kf3 {[%clk 0:00:19]} 58. Kh1 {[%clk 0:00:14]}  g5 {[%clk 0:00:19]} 59. Kg1 {[%clk 0:00:15]}  g4 {[%clk 0:00:19]} 60. Kh1 {[%clk 0:00:16]}  g3 {[%clk 0:00:19]} 61. Kg1 {[%clk 0:00:17]}  Bd4+ {[%clk 0:00:19]} 62. Kh1 {[%clk 0:00:18]}  g2+ {[%clk 0:00:18]} 63. Kh2 {[%clk 0:00:18]}  g1=Q+ {[%clk 0:00:18]} 64. Kh3 {[%clk 0:00:18]}  Qg3# {[%clk 0:00:19]} 0-1


[Site "https://www.chess.com"]

[Event "Titled Tuesday Blitz July 4 Early 2023"]
[White "Kuchava, Ana"]
[Black "Rangel, Daniel"]
[WhiteFideId "13605348"]
[BlackFideId "2124475"]
[WhiteElo "2285"]
[BlackElo "2507"]
[Result "0-1"]
[Round "3"]
[TimeControl "180+2"]
[Date "2023.07.04"]
[WhiteClock "0:00:03"]
[BlackClock "0:01:09"]
[Board "198"]

1. d4 {[%clk 0:03:00]}  Nf6 {[%clk 0:02:59]} 2. c4 {[%clk 0:03:00]}  e6 {[%clk 0:03:00]} 3. Nf3 {[%clk 0:02:59]}  d5 {[%clk 0:03:00]} 4. Nc3 {[%clk 0:02:58]}  Be7 {[%clk 0:03:01]} 5. Bf4 {[%clk 0:02:55]}  O-O {[%clk 0:03:00]} 6. e3 {[%clk 0:02:54]}  a6 {[%clk 0:03:01]} 7. Bd3 {[%clk 0:02:36]}  dxc4 {[%clk 0:03:01]} 8. Bxc4 {[%clk 0:02:36]}  b5 {[%clk 0:03:01]} 9. Bd3 {[%clk 0:02:30]}  Bb7 {[%clk 0:02:57]} 10. O-O {[%clk 0:02:27]}  Nbd7 {[%clk 0:02:57]} 11. Rc1 {[%clk 0:02:18]}  c5 {[%clk 0:02:57]} 12. h3 {[%clk 0:02:13]}  h6 {[%clk 0:02:45]} 13. Qe2 {[%clk 0:02:05]}  Re8 {[%clk 0:02:38]} 14. Rfd1 {[%clk 0:01:55]}  Ra7 {[%clk 0:02:35]} 15. dxc5 {[%clk 0:01:22]}  Bxc5 {[%clk 0:02:33]} 16. Ne5 {[%clk 0:01:17]}  Qa8 {[%clk 0:02:26]} 17. f3 {[%clk 0:01:05]}  Bb6 {[%clk 0:02:17]} 18. Nxd7 {[%clk 0:00:51]}  Nxd7 {[%clk 0:02:13]} 19. Bxb5 {[%clk 0:00:50]}  axb5 {[%clk 0:01:37]} 20. Rxd7 {[%clk 0:00:48]}  e5 {[%clk 0:01:37]} 21. Bg3 {[%clk 0:00:45]}  Bxf3 {[%clk 0:01:30]} 22. Rxa7 {[%clk 0:00:42]}  Qxa7 {[%clk 0:01:29]} 23. Qxb5 {[%clk 0:00:36]}  Bxe3+ {[%clk 0:01:28]} 24. Kh1 {[%clk 0:00:36]}  Rb8 {[%clk 0:01:28]} 25. Qf1 {[%clk 0:00:19]}  Bxc1 {[%clk 0:01:27]} 26. Qxc1 {[%clk 0:00:20]}  Ba8 {[%clk 0:01:24]} 27. Bxe5 {[%clk 0:00:19]}  Re8 {[%clk 0:01:22]} 28. Qf4 {[%clk 0:00:12]}  Qb7 {[%clk 0:01:19]} 29. Qg3 {[%clk 0:00:11]}  Rxe5 {[%clk 0:01:17]} 30. Kh2 {[%clk 0:00:03]}  Rg5 {[%clk 0:01:09]} 0-1


[Site "https://www.chess.com"]

[Event "Titled Tuesday Blitz July 4 Early 2023"]
[White "Zaksaite, Salomeja"]
[Black "musclemonster12"]
[WhiteFideId "12801496"]
[WhiteElo "2283"]
[BlackElo "2496"]
[Result "0-1"]
[Round "3"]
[TimeControl "180+2"]
[Date "2023.07.04"]
[WhiteClock "0:00:00"]
[BlackClock "0:00:14"]
[Board "200"]

1. e4 {[%clk 0:03:00]}  c5 {[%clk 0:02:59]} 2. Nf3 {[%clk 0:03:00]}  d6 {[%clk 0:02:58]} 3. d4 {[%clk 0:03:00]}  cxd4 {[%clk 0:02:59]} 4. Nxd4 {[%clk 0:03:00]}  Nf6 {[%clk 0:02:57]} 5. Nc3 {[%clk 0:03:01]}  Nc6 {[%clk 0:02:58]} 6. Bc4 {[%clk 0:03:00]}  Qb6 {[%clk 0:02:56]} 7. Nb3 {[%clk 0:02:59]}  e6 {[%clk 0:02:54]} 8. Be3 {[%clk 0:02:59]}  Qc7 {[%clk 0:02:54]} 9. Bd3 {[%clk 0:03:00]}  a6 {[%clk 0:02:53]} 10. f4 {[%clk 0:02:59]}  b5 {[%clk 0:02:53]} 11. Qf3 {[%clk 0:02:58]}  Bb7 {[%clk 0:02:52]} 12. g4 {[%clk 0:02:55]}  b4 {[%clk 0:02:43]} 13. Na4 {[%clk 0:02:54]}  d5 {[%clk 0:02:39]} 14. e5 {[%clk 0:02:49]}  Ne4 {[%clk 0:02:40]} 15. O-O-O {[%clk 0:02:22]}  Be7 {[%clk 0:02:12]} 16. Rhe1 {[%clk 0:02:21]}  O-O {[%clk 0:02:09]} 17. Bxe4 {[%clk 0:02:14]}  dxe4 {[%clk 0:02:09]} 18. Qxe4 {[%clk 0:02:13]}  Na5 {[%clk 0:02:05]} 19. Qd4 {[%clk 0:02:04]}  Rac8 {[%clk 0:01:22]} 20. Nbc5 {[%clk 0:01:41]}  Bf3 {[%clk 0:01:18]} 21. Rd2 {[%clk 0:01:37]}  Bd5 {[%clk 0:01:15]} 22. Kb1 {[%clk 0:01:23]}  Nc4 {[%clk 0:01:12]} 23. Bf2 {[%clk 0:00:21]}  Nxd2+ {[%clk 0:01:03]} 24. Qxd2 {[%clk 0:00:19]}  Qa5 {[%clk 0:01:02]} 25. b3 {[%clk 0:00:17]}  Bxc5 {[%clk 0:00:57]} 26. Nxc5 {[%clk 0:00:17]}  Rxc5 {[%clk 0:00:58]} 27. Bxc5 {[%clk 0:00:17]}  Qxc5 {[%clk 0:00:59]} 28. f5 {[%clk 0:00:16]}  Qc3 {[%clk 0:00:54]} 29. Qf2 {[%clk 0:00:08]}  Rc8 {[%clk 0:00:52]} 30. f6 {[%clk 0:00:08]}  g6 {[%clk 0:00:49]} 31. Re2 {[%clk 0:00:03]}  a5 {[%clk 0:00:42]} 32. Qf4 {[%clk 0:00:03]}  Qc5 {[%clk 0:00:17]} 33. Qh6 {[%clk 0:00:03]}  Qf8 {[%clk 0:00:18]} 34. Qg5 {[%clk 0:00:03]}  h6 {[%clk 0:00:17]} 35. Qf4 {[%clk 0:00:03]}  Kh7 {[%clk 0:00:18]} 36. h4 {[%clk 0:00:03]}  Qc5 {[%clk 0:00:17]} 37. h5 {[%clk 0:00:02]}  Qg1+ {[%clk 0:00:17]} 38. Kb2 {[%clk 0:00:02]}  g5 {[%clk 0:00:16]} 39. Qd2 {[%clk 0:00:02]}  Qc5 {[%clk 0:00:15]} 40. Qd3+ {[%clk 0:00:02]}  Kg8 {[%clk 0:00:15]} 41. Rf2 {[%clk 0:00:00]}  Qxf2 {[%clk 0:00:14]} 0-1


[Site "https://www.chess.com"]

[Event "Titled Tuesday Blitz July 4 Early 2023"]
[White "Mindhunter08"]
[Black "Mica, Marek"]
[BlackFideId "382884"]
[WhiteElo "2267"]
[BlackElo "2492"]
[Result "1-0"]
[Round "3"]
[TimeControl "180+2"]
[Date "2023.07.04"]
[WhiteClock "0:00:33"]
[BlackClock "0:01:10"]
[Board "202"]

1. e4 {[%clk 0:03:00]}  c5 {[%clk 0:02:57]} 2. Nf3 {[%clk 0:03:01]}  g6 {[%clk 0:02:55]} 3. d4 {[%clk 0:03:01]}  cxd4 {[%clk 0:02:56]} 4. Qxd4 {[%clk 0:03:01]}  Nf6 {[%clk 0:02:55]} 5. Nc3 {[%clk 0:03:02]}  Nc6 {[%clk 0:02:56]} 6. Qa4 {[%clk 0:03:02]}  d6 {[%clk 0:02:56]} 7. e5 {[%clk 0:03:03]}  dxe5 {[%clk 0:02:55]} 8. Nxe5 {[%clk 0:03:04]}  Bd7 {[%clk 0:02:56]} 9. Nxd7 {[%clk 0:03:03]}  Qxd7 {[%clk 0:02:56]} 10. Be2 {[%clk 0:03:02]}  Bg7 {[%clk 0:02:57]} 11. Be3 {[%clk 0:03:01]}  O-O {[%clk 0:02:57]} 12. O-O {[%clk 0:03:01]}  Rfd8 {[%clk 0:02:54]} 13. Rad1 {[%clk 0:02:58]}  Qe6 {[%clk 0:02:55]} 14. h3 {[%clk 0:02:53]}  h5 {[%clk 0:02:48]} 15. Rfe1 {[%clk 0:02:43]}  Rxd1 {[%clk 0:02:37]} 16. Rxd1 {[%clk 0:02:44]}  Qc8 {[%clk 0:02:36]} 17. Qb3 {[%clk 0:02:36]}  Ne8 {[%clk 0:02:32]} 18. Bd3 {[%clk 0:02:27]}  e6 {[%clk 0:02:27]} 19. Be4 {[%clk 0:02:12]}  Nf6 {[%clk 0:02:26]} 20. Bf3 {[%clk 0:02:09]}  Nd7 {[%clk 0:02:22]} 21. Nb5 {[%clk 0:01:59]}  Nde5 {[%clk 0:02:08]} 22. Be4 {[%clk 0:01:41]}  Na5 {[%clk 0:02:07]} 23. Qb4 {[%clk 0:01:29]}  Nac4 {[%clk 0:02:03]} 24. Bd4 {[%clk 0:01:22]}  a6 {[%clk 0:01:41]} 25. Nd6 {[%clk 0:01:08]}  Nxd6 {[%clk 0:01:39]} 26. Qxd6 {[%clk 0:01:08]}  Nc4 {[%clk 0:01:34]} 27. Qb4 {[%clk 0:01:02]}  a5 {[%clk 0:01:26]} 28. Qb3 {[%clk 0:00:54]}  Qb8 {[%clk 0:01:08]} 29. Qxc4 {[%clk 0:00:48]}  b5 {[%clk 0:01:08]} 30. Qc6 {[%clk 0:00:42]}  Ra7 {[%clk 0:01:05]} 31. Bxa7 {[%clk 0:00:41]}  Qxa7 {[%clk 0:01:05]} 32. Qxb5 {[%clk 0:00:39]}  Kh7 {[%clk 0:01:03]} 33. Qxh5+ {[%clk 0:00:38]}  Kg8 {[%clk 0:01:02]} 34. Rd8+ {[%clk 0:00:38]}  Bf8 {[%clk 0:01:03]} 35. Qh6 {[%clk 0:00:33]}  Qe7 {[%clk 0:01:02]} 36. Rxf8+ {[%clk 0:00:31]}  Qxf8 {[%clk 0:01:03]} 37. Qxf8+ {[%clk 0:00:31]}  Kxf8 {[%clk 0:01:04]} 38. c3 {[%clk 0:00:30]}  Ke7 {[%clk 0:01:05]} 39. b4 {[%clk 0:00:31]}  Kd6 {[%clk 0:01:06]} 40. bxa5 {[%clk 0:00:31]}  Kc5 {[%clk 0:01:07]} 41. a4 {[%clk 0:00:30]}  f5 {[%clk 0:01:06]} 42. Bb7 {[%clk 0:00:29]}  e5 {[%clk 0:01:07]} 43. Bc8 {[%clk 0:00:27]}  e4 {[%clk 0:01:06]} 44. h4 {[%clk 0:00:27]}  f4 {[%clk 0:01:06]} 45. Be6 {[%clk 0:00:26]}  Kc6 {[%clk 0:01:05]} 46. Bf7 {[%clk 0:00:26]}  Kc5 {[%clk 0:01:04]} 47. Bxg6 {[%clk 0:00:26]}  e3 {[%clk 0:01:05]} 48. fxe3 {[%clk 0:00:26]}  fxe3 {[%clk 0:01:05]} 49. Kf1 {[%clk 0:00:27]}  Kc4 {[%clk 0:01:06]} 50. Ke2 {[%clk 0:00:26]}  Kxc3 {[%clk 0:01:07]} 51. a6 {[%clk 0:00:27]}  Kb4 {[%clk 0:01:08]} 52. a7 {[%clk 0:00:28]}  Kxa4 {[%clk 0:01:08]} 53. a8=Q+ {[%clk 0:00:28]}  Kb4 {[%clk 0:01:09]} 54. Qc6 {[%clk 0:00:28]}  Ka3 {[%clk 0:01:07]} 55. h5 {[%clk 0:00:29]}  Kb2 {[%clk 0:01:08]} 56. h6 {[%clk 0:00:30]}  Ka2 {[%clk 0:01:08]} 57. h7 {[%clk 0:00:31]}  Kb2 {[%clk 0:01:09]} 58. h8=Q+ {[%clk 0:00:32]}  Ka2 {[%clk 0:01:10]} 59. Qb8 {[%clk 0:00:33]}  Ka3 {[%clk 0:01:10]} 60. Qca8# {[%clk 0:00:33]} 1-0


[Site "https://www.chess.com"]

[Event "Titled Tuesday Blitz July 4 Early 2023"]
[White "Martin, Lewis"]
[Black "Novik, Maxim"]
[WhiteFideId "410551"]
[BlackFideId "4102924"]
[WhiteElo "2264"]
[BlackElo "2487"]
[Result "0-1"]
[Round "3"]
[TimeControl "180+2"]
[Date "2023.07.04"]
[WhiteClock "0:00:22"]
[BlackClock "0:00:43"]
[Board "203"]

1. e4 {[%clk 0:03:00]}  c6 {[%clk 0:02:59]} 2. d4 {[%clk 0:03:00]}  d5 {[%clk 0:02:58]} 3. Nc3 {[%clk 0:03:01]}  dxe4 {[%clk 0:02:58]} 4. Nxe4 {[%clk 0:03:02]}  Bf5 {[%clk 0:02:57]} 5. Ng3 {[%clk 0:03:02]}  Bg6 {[%clk 0:02:58]} 6. Nf3 {[%clk 0:03:02]}  e6 {[%clk 0:02:57]} 7. h4 {[%clk 0:03:02]}  h6 {[%clk 0:02:57]} 8. h5 {[%clk 0:03:02]}  Bh7 {[%clk 0:02:57]} 9. Bd3 {[%clk 0:03:02]}  Bxd3 {[%clk 0:02:58]} 10. Qxd3 {[%clk 0:03:03]}  Nf6 {[%clk 0:02:58]} 11. Bd2 {[%clk 0:02:58]}  c5 {[%clk 0:02:57]} 12. O-O-O {[%clk 0:02:53]}  Nc6 {[%clk 0:02:57]} 13. Rhe1 {[%clk 0:02:48]}  cxd4 {[%clk 0:02:54]} 14. Nf5 {[%clk 0:02:27]}  Qd5 {[%clk 0:02:50]} 15. N5xd4 {[%clk 0:02:19]}  Qxa2 {[%clk 0:02:46]} 16. Bc3 {[%clk 0:02:15]}  O-O-O {[%clk 0:02:40]} 17. Qb5 {[%clk 0:01:55]}  Rd5 {[%clk 0:02:25]} 18. Qb3 {[%clk 0:01:52]}  Qxb3 {[%clk 0:02:24]} 19. Nxb3 {[%clk 0:01:52]}  Rxd1+ {[%clk 0:02:20]} 20. Rxd1 {[%clk 0:01:50]}  Nxh5 {[%clk 0:02:18]} 21. Ne5 {[%clk 0:01:43]}  Nxe5 {[%clk 0:02:12]} 22. Bxe5 {[%clk 0:01:44]}  Be7 {[%clk 0:02:11]} 23. Nd4 {[%clk 0:01:36]}  Rd8 {[%clk 0:02:07]} 24. Rh1 {[%clk 0:01:34]}  Nf6 {[%clk 0:02:05]} 25. Nb5 {[%clk 0:01:33]}  Rd5 {[%clk 0:01:59]} 26. Nxa7+ {[%clk 0:01:25]}  Kd7 {[%clk 0:01:58]} 27. Bb8 {[%clk 0:01:21]}  Ng4 {[%clk 0:01:25]} 28. f3 {[%clk 0:01:18]}  Ne3 {[%clk 0:01:25]} 29. Re1 {[%clk 0:01:07]}  Nxg2 {[%clk 0:01:21]} 30. Re2 {[%clk 0:01:07]}  Nh4 {[%clk 0:01:20]} 31. c4 {[%clk 0:01:07]}  Rc5 {[%clk 0:01:04]} 32. b3 {[%clk 0:01:04]}  Nxf3 {[%clk 0:01:01]} 33. Nb5 {[%clk 0:01:02]}  Rxb5 {[%clk 0:00:58]} 34. cxb5 {[%clk 0:01:01]}  g5 {[%clk 0:00:56]} 35. Kd1 {[%clk 0:00:53]}  f5 {[%clk 0:00:56]} 36. Be5 {[%clk 0:00:44]}  Nxe5 {[%clk 0:00:54]} 37. Rxe5 {[%clk 0:00:44]}  g4 {[%clk 0:00:52]} 38. Ke2 {[%clk 0:00:43]}  h5 {[%clk 0:00:51]} 39. Kf1 {[%clk 0:00:42]}  h4 {[%clk 0:00:51]} 40. Kg2 {[%clk 0:00:41]}  h3+ {[%clk 0:00:52]} 41. Kg1 {[%clk 0:00:39]}  Bd6 {[%clk 0:00:51]} 42. Re2 {[%clk 0:00:38]}  g3 {[%clk 0:00:51]} 43. Rc2 {[%clk 0:00:37]}  f4 {[%clk 0:00:46]} 44. Rc3 {[%clk 0:00:33]}  e5 {[%clk 0:00:45]} 45. Rc4 {[%clk 0:00:33]}  Ke6 {[%clk 0:00:45]} 46. Rc8 {[%clk 0:00:29]}  Kd5 {[%clk 0:00:44]} 47. Rh8 {[%clk 0:00:25]}  Bc5+ {[%clk 0:00:43]} 48. Kf1 {[%clk 0:00:22]}  g2+ {[%clk 0:00:43]} 0-1


[Site "https://www.chess.com"]

[Event "Titled Tuesday Blitz July 4 Early 2023"]
[White "laimis61"]
[Black "Yeritsyan, Hayk"]
[BlackFideId "13307320"]
[WhiteElo "2263"]
[BlackElo "2467"]
[Result "0-1"]
[Round "3"]
[TimeControl "180+2"]
[Date "2023.07.04"]
[WhiteClock "0:00:00"]
[BlackClock "0:00:14"]
[Board "204"]

1. e4 {[%clk 0:03:00]}  c6 {[%clk 0:02:53]} 2. d4 {[%clk 0:02:59]}  d5 {[%clk 0:02:53]} 3. exd5 {[%clk 0:02:59]}  cxd5 {[%clk 0:02:54]} 4. Bd3 {[%clk 0:02:59]}  Nf6 {[%clk 0:02:51]} 5. h3 {[%clk 0:02:58]}  Bd7 {[%clk 0:02:44]} 6. c3 {[%clk 0:02:56]}  Qc8 {[%clk 0:02:45]} 7. Nf3 {[%clk 0:02:53]}  Bf5 {[%clk 0:02:45]} 8. Be2 {[%clk 0:02:51]}  Bxb1 {[%clk 0:02:42]} 9. Rxb1 {[%clk 0:02:50]}  e6 {[%clk 0:02:42]} 10. Bf4 {[%clk 0:02:49]}  Qd8 {[%clk 0:02:42]} 11. O-O {[%clk 0:02:48]}  Bd6 {[%clk 0:02:42]} 12. Bxd6 {[%clk 0:02:35]}  Qxd6 {[%clk 0:02:43]} 13. Bb5+ {[%clk 0:02:34]}  Nbd7 {[%clk 0:02:42]} 14. Re1 {[%clk 0:02:31]}  O-O {[%clk 0:02:40]} 15. Ne5 {[%clk 0:02:30]}  Qc7 {[%clk 0:02:38]} 16. Bd3 {[%clk 0:02:29]}  Nxe5 {[%clk 0:02:38]} 17. dxe5 {[%clk 0:02:26]}  Nd7 {[%clk 0:02:38]} 18. f4 {[%clk 0:02:23]}  a6 {[%clk 0:02:36]} 19. Kh1 {[%clk 0:02:19]}  f6 {[%clk 0:02:30]} 20. Qe2 {[%clk 0:02:10]}  f5 {[%clk 0:02:15]} 21. c4 {[%clk 0:02:03]}  Nb6 {[%clk 0:02:12]} 22. cxd5 {[%clk 0:01:58]}  Nxd5 {[%clk 0:02:12]} 23. Rbc1 {[%clk 0:01:45]}  Qb6 {[%clk 0:02:08]} 24. Bc4 {[%clk 0:01:44]}  Rfd8 {[%clk 0:02:01]} 25. Bxd5 {[%clk 0:01:42]}  Rxd5 {[%clk 0:02:00]} 26. Red1 {[%clk 0:01:34]}  Rad8 {[%clk 0:01:53]} 27. Rxd5 {[%clk 0:01:33]}  Rxd5 {[%clk 0:01:54]} 28. Rc8+ {[%clk 0:01:31]}  Rd8 {[%clk 0:01:53]} 29. Rxd8+ {[%clk 0:01:29]}  Qxd8 {[%clk 0:01:51]} 30. Qc4 {[%clk 0:01:27]}  Qd7 {[%clk 0:01:50]} 31. Kh2 {[%clk 0:01:23]}  h6 {[%clk 0:01:50]} 32. a4 {[%clk 0:01:20]}  Kh7 {[%clk 0:01:50]} 33. a5 {[%clk 0:01:16]}  g5 {[%clk 0:01:42]} 34. fxg5 {[%clk 0:01:12]}  hxg5 {[%clk 0:01:43]} 35. h4 {[%clk 0:01:08]}  g4 {[%clk 0:01:37]} 36. Qf4 {[%clk 0:01:06]}  Qd5 {[%clk 0:01:31]} 37. g3 {[%clk 0:01:02]}  Qxa5 {[%clk 0:01:19]} 38. h5 {[%clk 0:00:59]}  Qb5 {[%clk 0:01:13]} 39. Qg5 {[%clk 0:00:48]}  Qxb2+ {[%clk 0:01:12]} 40. Kh1 {[%clk 0:00:45]}  Qb1+ {[%clk 0:00:54]} 41. Kh2 {[%clk 0:00:44]}  Qc2+ {[%clk 0:00:55]} 42. Kh1 {[%clk 0:00:43]}  Qd1+ {[%clk 0:00:56]} 43. Kh2 {[%clk 0:00:42]}  Qe2+ {[%clk 0:00:56]} 44. Kh1 {[%clk 0:00:40]}  Qe1+ {[%clk 0:00:38]} 45. Kh2 {[%clk 0:00:39]}  Qxe5 {[%clk 0:00:38]} 46. Qg6+ {[%clk 0:00:33]}  Kh8 {[%clk 0:00:38]} 47. Qe8+ {[%clk 0:00:32]}  Kg7 {[%clk 0:00:39]} 48. Qg6+ {[%clk 0:00:21]}  Kf8 {[%clk 0:00:39]} 49. h6 {[%clk 0:00:21]}  Qe2+ {[%clk 0:00:34]} 50. Kh1 {[%clk 0:00:20]}  Qf1+ {[%clk 0:00:32]} 51. Kh2 {[%clk 0:00:19]}  Qh3+ {[%clk 0:00:33]} 52. Kg1 {[%clk 0:00:20]}  Qxg3+ {[%clk 0:00:33]} 53. Kf1 {[%clk 0:00:20]}  Qf3+ {[%clk 0:00:33]} 54. Kg1 {[%clk 0:00:20]}  g3 {[%clk 0:00:25]} 55. Qf6+ {[%clk 0:00:19]}  Ke8 {[%clk 0:00:24]} 56. Qxe6+ {[%clk 0:00:19]}  Kd8 {[%clk 0:00:24]} 57. Qd6+ {[%clk 0:00:19]}  Kc8 {[%clk 0:00:25]} 58. Qe6+ {[%clk 0:00:19]}  Kb8 {[%clk 0:00:24]} 59. Qd6+ {[%clk 0:00:18]}  Kc8 {[%clk 0:00:24]} 60. Qe6+ {[%clk 0:00:18]}  Kc7 {[%clk 0:00:24]} 61. Qe7+ {[%clk 0:00:18]}  Kc6 {[%clk 0:00:25]} 62. Qe6+ {[%clk 0:00:17]}  Kc5 {[%clk 0:00:25]} 63. Qc8+ {[%clk 0:00:15]}  Kb6 {[%clk 0:00:17]} 64. Qe6+ {[%clk 0:00:14]}  Ka7 {[%clk 0:00:15]} 65. Qa2 {[%clk 0:00:14]}  Qe3+ {[%clk 0:00:14]} 66. Kg2 {[%clk 0:00:13]}  Qxh6 {[%clk 0:00:14]} 67. Kxg3 {[%clk 0:00:13]}  Qe3+ {[%clk 0:00:14]} 68. Kh4 {[%clk 0:00:12]}  f4 {[%clk 0:00:14]} 69. Kg4 {[%clk 0:00:00]}  f3 {[%clk 0:00:14]} 0-1


[Site "https://www.chess.com"]

[Event "Titled Tuesday Blitz July 4 Early 2023"]
[White "Sanhueza, Cristian"]
[Black "Modric, Nesa"]
[WhiteFideId "116815"]
[BlackFideId "922579"]
[WhiteElo "2459"]
[BlackElo "2258"]
[Result "1-0"]
[Round "3"]
[TimeControl "180+2"]
[Date "2023.07.04"]
[WhiteClock "0:02:49"]
[BlackClock "0:01:18"]
[Board "205"]

1. e4 {[%clk 0:03:00]}  c6 {[%clk 0:02:58]} 2. d4 {[%clk 0:03:00]}  d5 {[%clk 0:02:58]} 3. exd5 {[%clk 0:03:01]}  cxd5 {[%clk 0:02:58]} 4. c4 {[%clk 0:03:02]}  e6 {[%clk 0:02:57]} 5. Nc3 {[%clk 0:03:03]}  dxc4 {[%clk 0:02:54]} 6. Bxc4 {[%clk 0:03:02]}  Nf6 {[%clk 0:02:52]} 7. Nf3 {[%clk 0:03:03]}  Be7 {[%clk 0:02:46]} 8. O-O {[%clk 0:03:03]}  O-O {[%clk 0:02:46]} 9. Re1 {[%clk 0:03:04]}  b6 {[%clk 0:02:44]} 10. d5 {[%clk 0:03:03]}  exd5 {[%clk 0:02:41]} 11. Nxd5 {[%clk 0:03:04]}  Nc6 {[%clk 0:01:53]} 12. Nxe7+ {[%clk 0:02:59]}  Nxe7 {[%clk 0:01:53]} 13. Qxd8 {[%clk 0:02:58]}  Rxd8 {[%clk 0:01:50]} 14. Rxe7 {[%clk 0:02:59]}  Rd1+ {[%clk 0:01:49]} 15. Re1 {[%clk 0:02:59]}  Rxe1+ {[%clk 0:01:47]} 16. Nxe1 {[%clk 0:03:00]}  Bb7 {[%clk 0:01:45]} 17. Be3 {[%clk 0:02:55]}  h6 {[%clk 0:01:37]} 18. Nf3 {[%clk 0:02:53]}  Rc8 {[%clk 0:01:35]} 19. Bb3 {[%clk 0:02:52]}  Ne4 {[%clk 0:01:32]} 20. Rd1 {[%clk 0:02:51]}  g5 {[%clk 0:01:18]} 21. Rd7 {[%clk 0:02:49]} 1-0


[Site "https://www.chess.com"]